bitfinex-derivatives/quotes_BTCF0:USTF0_20251129
["timestamp","ask_amount","ask_price","bid_price","bid_amount"]
[1764397720177,0.09123,90627.0,90626.0,0.17103466]
[1764397721475,0.09123,90626.0,90625.0,0.0442]
[1764397721880,0.09123,90626.0,90625.0,0.09176]
[1764397722176,0.09123,90626.0,90625.0,0.10775974]
[1764397722875,0.09223,90626.0,90625.0,0.10775974]
[1764397724084,0.09223,90626.0,90625.0,0.06019974]
[1764397724280,0.09223,90626.0,90625.0,0.01599974]
[1764397724485,0.09123,90623.0,90622.0,0.07927466]
[1764397724984,0.09123,90621.0,90620.0,0.17103466]
[1764397726184,0.09123,90621.0,90620.0,0.09176]
[1764397729072,0.09123,90620.0,90619.0,0.01616688]
[1764397729276,0.11905,90612.0,90611.0,0.00016557]
[1764397729477,0.53905,90612.0,90611.0,0.00016557]
[1764397730584,0.53905,90612.0,90611.0,0.01622272]
[1764397731089,0.54005,90612.0,90611.0,0.01622272]
[1764397731490,0.54405,90612.0,90611.0,0.01622272]
[1764397731787,0.54305,90612.0,90611.0,0.01622272]
[1764397731987,0.54005,90612.0,90611.0,0.01622272]
[1764397732185,0.54405,90612.0,90611.0,0.01622272]
[1764397732678,0.09123,90604.0,90603.0,0.07927806]
[1764397733282,0.09123,90603.0,90602.0,0.12347806]
[1764397733680,0.11905,90600.0,90599.0,0.12347806]
[1764397734388,0.09123,90599.0,90598.0,0.07927806]
[1764397734784,0.09123,90599.0,90598.0,0.12347806]
[1764397735279,0.09123,90599.0,90598.0,0.0442]
[1764397735479,0.09123,90599.0,90598.0,0.09176]
[1764397736386,0.1022675,90599.0,90598.0,0.09176]
[1764397736985,0.1022675,90599.0,90598.0,0.17103806]
[1764397737286,0.1022675,90599.0,90598.0,0.09176]
[1764397737682,0.09123,90599.0,90598.0,0.09176]
[1764397742998,0.40027,90603.0,90602.0,0.08621]
[1764397743694,0.4465,90603.0,90602.0,0.08621]
[1764397744196,0.4465,90603.0,90602.0,0.03961]
[1764397744387,0.4485,90603.0,90602.0,0.03961]
[1764397744997,0.4485,90603.0,90602.0,0.08621]
[1764397750290,0.40227,90603.0,90602.0,0.08621]
[1764397750489,0.4485,90603.0,90602.0,0.08621]
[1764397752303,0.4485,90603.0,90602.0,0.16540984]
[1764397754186,0.4485,90603.0,90602.0,0.08621]
[1764397755496,0.0877,90603.0,90602.0,0.08621]
[1764397761692,0.002,90603.0,90602.0,0.08621]
[1764397761900,0.03828,90635.0,90634.0,0.0868832]
[1764397762207,0.10099,90624.0,90623.0,0.33308313]
[1764397762405,0.10099,90624.0,90623.0,0.29471313]
[1764397762700,0.07809,90623.0,90622.0,0.3608]
[1764397762908,0.07825557,90623.0,90622.0,0.3608]
[1764397763092,0.07825557,90623.0,90622.0,0.3718347]
[1764397763291,0.07825557,90623.0,90622.0,0.3608]
[1764397763699,0.00016557,90632.0,90622.0,0.3608]
[1764397763700,0.00016557,90632.0,90631.0,0.07585]
[1764397763900,0.07825557,90632.0,90631.0,0.43665]
[1764397764092,0.07842114,90632.0,90631.0,0.07928787]
[1764397764291,0.07809,90631.0,90629.0,0.07928787]
[1764397764494,0.10115557,90629.0,90628.0,0.25428787]
[1764397765008,0.10115557,90629.0,90628.0,0.29265787]
[1764397765403,0.03844557,90629.0,90628.0,0.34117187]
[1764397765708,0.10115557,90629.0,90628.0,0.261884]
[1764397766312,0.10115557,90629.0,90628.0,0.34108755]
[1764397766605,0.10115557,90629.0,90628.0,0.33005355]
[1764397766798,0.10115557,90629.0,90628.0,0.33205355]
[1764397766998,0.10115557,90629.0,90628.0,0.25285]
[1764397767200,0.10115557,90629.0,90628.0,0.25085]
[1764397767405,0.10115557,90629.0,90628.0,0.25285]
[1764397770709,0.10115557,90629.0,90628.0,0.177]
[1764397772601,0.10115557,90629.0,90628.0,0.175]
[1764397773106,0.10115557,90629.0,90628.0,0.21242]
[1764397780211,0.10115557,90629.0,90628.0,0.175]
[1764397781416,0.10215557,90629.0,90628.0,0.175]
[1764397782118,0.07801,90623.0,90622.0,0.01592082]
[1764397782414,0.07801,90617.0,90616.0,0.0484554]
[1764397782614,0.07801,90614.0,90613.0,0.00016557]
[1764397782816,0.07817557,90614.0,90613.0,0.00016557]
[1764397783228,0.07817557,90614.0,90613.0,0.07430557]
[1764397783908,0.07817557,90614.0,90613.0,0.09051677]
[1764397784102,0.07817557,90614.0,90613.0,0.09351677]
[1764397784616,0.07917557,90614.0,90613.0,0.09051677]
[1764397786212,0.07817557,90614.0,90613.0,0.09051677]
[1764397788322,0.07817557,90614.0,90613.0,0.16972032]
[1764397790327,0.07817557,90614.0,90613.0,0.01637677]
[1764397790530,0.47817557,90614.0,90613.0,0.01637677]
[1764397792327,0.48117557,90614.0,90613.0,0.01637677]
[1764397794730,0.40316557,90614.0,90613.0,0.09051677]
[1764397794932,0.08117557,90614.0,90613.0,0.09051677]
[1764397795126,0.52117557,90614.0,90613.0,0.01637677]
[1764397795332,0.52117557,90614.0,90606.0,0.07929434]
[1764397795333,0.07801,90607.0,90606.0,0.07929434]
[1764397795634,0.07801,90607.0,90603.0,0.17492]
[1764397795635,0.0890469,90604.0,90603.0,0.25421434]
[1764397795833,0.08921247,90604.0,90603.0,0.30722482]
[1764397796027,0.08921247,90604.0,90603.0,0.13230482]
[1764397796226,0.08921247,90604.0,90603.0,0.05301048]
[1764397796632,0.07817557,90604.0,90603.0,0.08973048]
[1764397801636,0.07817557,90604.0,90603.0,0.01559048]
[1764397801833,0.06949,90602.0,90600.0,0.07929434]
[1764397802031,0.02277,90606.0,90600.0,0.07929434]
[1764397802032,0.06965557,90601.0,90600.0,0.14905174]
[1764397802227,0.00016557,90601.0,90600.0,0.14905174]
[1764397802733,0.03312557,90601.0,90600.0,0.14905174]
[1764397803138,0.03312557,90601.0,90600.0,0.15005174]
[1764397803642,0.06965557,90601.0,90600.0,0.15005174]
[1764397804430,0.06965557,90601.0,90600.0,0.0707574]
[1764397805134,0.06965557,90601.0,90600.0,0.08633914]
[1764397805330,0.06965557,90601.0,90600.0,0.07530174]
[1764397806132,0.06965557,90601.0,90600.0,0.15455576]
[1764397807136,0.06965557,90601.0,90600.0,0.07530174]
[1764397808434,0.06965557,90601.0,90600.0,0.15455576]
[1764397810346,0.06965557,90601.0,90600.0,0.07530174]
[1764397811547,0.00016557,90601.0,90600.0,0.07530174]
[1764397812036,0.03312557,90601.0,90600.0,0.07530174]
[1764397812942,0.06965557,90601.0,90600.0,0.07530174]
[1764397817248,0.03312557,90601.0,90600.0,0.17445557]
[1764397818139,0.00016557,90601.0,90600.0,0.17445557]
[1764397818639,0.00016557,90601.0,90600.0,0.53525557]
[1764397819044,0.00016557,90601.0,90600.0,0.43610174]
[1764397819848,0.00016557,90613.0,90612.0,0.0697559]
[1764397820044,0.00016557,90613.0,90612.0,0.2446359]
[1764397820352,0.03312557,90613.0,90612.0,0.34389493]
[1764397820552,0.00016557,90613.0,90612.0,0.2446359]
[1764397821042,0.00116557,90613.0,90612.0,0.2446359]
[1764397821244,0.00316557,90613.0,90612.0,0.2446359]
[1764397822049,0.00216557,90613.0,90612.0,0.2446359]
[1764397823556,0.00016557,90613.0,90612.0,0.2446359]
[1764397823755,0.00016557,90613.0,90612.0,0.2476359]
[1764397824151,0.00016557,90613.0,90612.0,0.2446359]
[1764397824354,0.00016557,90613.0,90612.0,0.2476359]
[1764397824758,0.42372,90626.0,90625.0,0.0532543]
[1764397824954,0.42372,90626.0,90625.0,0.30743626]
[1764397825150,0.42372,90626.0,90625.0,0.29640196]
[1764397826056,0.06292,90626.0,90625.0,0.5779]
[1764397826455,0.03185,90626.0,90625.0,0.5779]
[1764397826753,0.06509,90626.0,90625.0,0.5779]
[1764397827160,0.03285,90626.0,90625.0,0.5779]
[1764397827352,0.03185,90626.0,90625.0,0.5779]
[1764397828062,0.03185,90626.0,90625.0,0.5799]
[1764397828861,0.06409,90626.0,90625.0,0.5799]
[1764397829353,0.08402,90630.0,90629.0,0.03836]
[1764397830259,0.08402,90630.0,90629.0,0.11752313]
[1764397830460,0.08402,90630.0,90629.0,0.03836]
[1764397830657,0.08402,90630.0,90629.0,0.04036]
[1764397831262,0.08402,90630.0,90629.0,0.11951135]
[1764397834070,0.08402,90630.0,90629.0,0.13514876]
[1764397834259,0.08402,90630.0,90629.0,0.05599741]
[1764397837259,0.08402,90630.0,90629.0,0.01763741]
[1764397837466,0.5050537,90630.0,90629.0,0.01763741]
[1764397838472,0.06265,90623.0,90622.0,0.07915135]
[1764397838669,0.06265,90620.0,90619.0,0.25395135]
[1764397838867,0.06265,90620.0,90619.0,0.28538135]
[1764397839068,0.06265,90620.0,90619.0,0.31596135]
[1764397840174,0.06265,90620.0,90619.0,0.31696135]
[1764397840477,0.06265,90620.0,90619.0,0.23781]
[1764397841761,0.06265,90620.0,90619.0,0.25398743]
[1764397841961,0.06265,90620.0,90619.0,0.1748]
[1764397842269,0.06265,90619.0,90618.0,0.07918743]
[1764397842579,0.06265,90617.0,90616.0,0.19082381]
[1764397843280,0.06265,90617.0,90616.0,0.22225381]
[1764397843481,0.06265,90617.0,90616.0,0.25283381]
[1764397843779,0.06365,90617.0,90616.0,0.25283381]
[1764397844683,0.03141,90617.0,90616.0,0.25283381]
[1764397844974,0.03141,90617.0,90616.0,0.33202124]
[1764397844975,0.03041,90617.0,90616.0,0.33202124]
[1764397845188,0.06265,90617.0,90616.0,0.33202124]
[1764397845386,0.06265,90617.0,90616.0,0.25283381]
[1764397847387,0.3608,90619.0,90618.0,0.06201]
[1764397847579,0.03041,90619.0,90618.0,0.06201]
[1764397848888,0.06265,90619.0,90618.0,0.06201]
[1764397855591,0.06265,90618.0,90617.0,0.3608]
[1764397855995,0.06265,90618.0,90617.0,0.39223]
[1764397856295,0.06265,90618.0,90617.0,0.42281]
[1764397857588,0.06365,90618.0,90617.0,0.42281]
[1764397857986,0.06265,90618.0,90617.0,0.42281]
[1764397860396,0.06265,90618.0,90617.0,0.39223]
[1764397860897,0.06265,90618.0,90617.0,0.42156]
[1764397861793,0.01918,90620.0,90616.0,0.19082381]
[1764397861794,0.0684853,90617.0,90616.0,0.19082381]
[1764397861996,0.0684853,90617.0,90616.0,0.01602381]
[1764397862298,0.0684853,90617.0,90616.0,0.19078381]
[1764397862798,0.05745,90617.0,90616.0,0.19078381]
[1764397863190,0.05745,90617.0,90616.0,0.27012589]
[1764397863497,0.05945,90617.0,90616.0,0.19078381]
[1764397865601,0.05945,90617.0,90616.0,0.21784381]
[1764397865804,0.05945,90617.0,90616.0,0.24717381]
[1764397867806,0.05945,90617.0,90603.0,0.13896265]
[1764397867807,0.07127,90605.0,90604.0,0.05430745]
[1764397867999,0.05745,90601.0,90600.0,0.20182]
[1764397868196,0.05745,90601.0,90600.0,0.23412]
[1764397868597,0.14558151,90601.0,90600.0,0.23412]
[1764397868803,0.05745,90601.0,90600.0,0.24920821]
[1764397869604,0.05745,90601.0,90600.0,0.25220821]
[1764397870707,0.05745,90601.0,90600.0,0.07444821]
[1764397870708,0.14705566,90601.0,90600.0,0.07444821]
[1764397871102,0.05745,90601.0,90600.0,0.07444821]
[1764397872904,0.05745,90601.0,90600.0,0.01508821]
[1764397873103,0.05745,90599.0,90598.0,0.17476]
[1764397873502,0.05745,90599.0,90598.0,0.20182]
[1764397873699,0.05745,90599.0,90598.0,0.21739844]
[1764397874208,0.05745,90599.0,90598.0,0.21839844]
[1764397874404,0.05745,90599.0,90598.0,0.01657844]
[1764397877902,0.05745,90599.0,90598.0,0.04363844]
[1764397878307,0.05745,90599.0,90598.0,0.07593844]
[1764397896328,0.05745,90599.0,90598.0,0.15524002]
[1764397897228,0.05745,90599.0,90598.0,0.07593844]
[1764397897424,0.05745,90599.0,90598.0,0.0323]
[1764397897728,0.0674786,90590.0,90589.0,0.02458641]
[1764397897919,0.4674786,90590.0,90589.0,0.02144]
[1764397899029,0.4694786,90590.0,90589.0,0.02144]
[1764397900228,0.2194786,90590.0,90589.0,0.02144]
[1764397900830,0.05644,90589.0,90588.0,0.07943847]
[1764397901030,0.09644,90589.0,90588.0,0.07943847]
[1764397901230,0.0841388,90588.0,90587.0,0.07943847]
[1764397901434,0.1241388,90588.0,90587.0,0.07943847]
[1764397901635,0.1241388,90588.0,90587.0,0.09015847]
[1764397901932,0.0841388,90588.0,90587.0,0.10087847]
[1764397902833,0.0841388,90588.0,90587.0,0.07943847]
[1764397903240,0.0841388,90588.0,90587.0,0.09015847]
[1764397903434,0.0871388,90588.0,90587.0,0.09015847]
[1764397904237,0.4771388,90588.0,90587.0,0.07943847]
[1764397904445,0.0841393,90584.0,90583.0,0.07943847]
[1764397905742,0.0841393,90584.0,90583.0,0.01531327]
[1764397906039,0.05644,90581.0,90580.0,0.00016557]
[1764397906238,0.43644,90581.0,90580.0,0.00016557]
[1764397907538,0.43744,90581.0,90580.0,0.00016557]
[1764397907926,0.43644,90581.0,90580.0,0.00016557]
[1764397908131,0.43944,90581.0,90580.0,0.00016557]
[1764397909133,0.44044,90581.0,90580.0,0.00016557]
[1764397909941,0.44044,90581.0,90574.0,0.07943847]
[1764397910144,0.05644,90566.0,90565.0,5e-08]
[1764397910342,0.0674838,90547.0,90546.0,0.01509089]
[1764397910544,0.0674838,90547.0,90532.0,0.13896265]
[1764397910545,0.49644,90547.0,90532.0,0.13896265]
[1764397910847,0.05644,90533.0,90532.0,0.02659]
[1764397911040,0.49651846,90533.0,90532.0,0.0553]
[1764397912049,0.49651846,90533.0,90532.0,0.02659]
[1764397912347,0.05644,90524.0,90523.0,0.05546567]
[1764397913045,0.02757,90524.0,90523.0,0.05546567]
[1764397913248,0.05651846,90533.0,90532.0,0.0553]
[1764397914748,0.05651846,90533.0,90532.0,0.0573]
[1764397915748,7.846e-05,90533.0,90532.0,0.0573]
[1764397918147,0.3608,90551.0,90541.0,0.06583]
[1764397918848,0.3608,90551.0,90550.0,0.06583]
[1764397919753,0.40124567,90560.0,90559.0,0.06583]
[1764397920044,0.42845567,90560.0,90559.0,0.06583]
[1764397920249,0.45845567,90560.0,90559.0,0.06583]
[1764397920550,0.73845567,90560.0,90559.0,0.06583]
[1764397920746,0.42845567,90560.0,90559.0,0.06583]
[1764397920952,0.48845567,90560.0,90559.0,0.06583]
[1764397921253,0.74245567,90560.0,90559.0,0.06583]
[1764397922547,0.43345567,90560.0,90559.0,0.06583]
[1764397923248,0.43245567,90560.0,90559.0,0.06583]
[1764397923750,0.06749,90547.0,90546.0,0.0978972]
[1764397924153,0.04028,90547.0,90546.0,0.0978972]
[1764397924753,0.08388,90558.0,90557.0,0.06583]
[1764397926658,0.08888,90558.0,90557.0,0.06583]
[1764397928056,0.06749,90547.0,90546.0,0.092871]
[1764397928247,0.06749,90547.0,90546.0,0.108941]
[1764397929358,0.06849,90547.0,90546.0,0.108941]
[1764397932360,0.001,90547.0,90546.0,0.108941]
[1764397933651,0.04128,90547.0,90546.0,0.108941]
[1764397936557,0.001,90547.0,90546.0,0.108941]
[1764397939956,0.04128,90547.0,90546.0,0.0978972]
[1764397940568,0.001,90547.0,90546.0,0.0978972]
[1764397941662,0.03874,90547.0,90546.0,0.0978972]
[1764397942456,0.07769,90547.0,90546.0,0.0978972]
[1764397942965,0.03874,90547.0,90546.0,0.0978972]
[1764397943765,0.001,90547.0,90546.0,0.0978972]
[1764397944663,0.03874,90547.0,90546.0,0.0978972]
[1764397944864,0.001,90547.0,90546.0,0.0978972]
[1764397946669,0.16265104,90560.0,90559.0,0.0743]
[1764397946964,0.07568567,90560.0,90559.0,0.0743]
[1764397947958,0.07868567,90560.0,90559.0,0.0743]
[1764397952776,0.07868567,90560.0,90559.0,0.09023421]
[1764397963984,0.00316567,90560.0,90559.0,0.09023421]
[1764397964980,0.00316567,90560.0,90559.0,0.45103421]
[1764397965578,0.4361,90584.0,90583.0,0.07693]
[1764397965778,0.8361,90584.0,90583.0,0.07693]
[1764397966073,1.1261,90584.0,90583.0,0.07693]
[1764397966272,0.8461,90584.0,90583.0,0.07693]
[1764397966476,0.4361,90584.0,90583.0,0.07693]
[1764397966783,0.4371,90584.0,90583.0,0.07693]
[1764397968590,0.4461,90584.0,90583.0,0.07793]
[1764397969281,0.4451,90584.0,90583.0,0.07793]
[1764397969483,0.4361,90584.0,90583.0,0.07693]
[1764397969681,0.4371,90584.0,90583.0,0.07693]
[1764397969982,1.2271,90584.0,90583.0,0.07693]
[1764397971585,1.2271,90584.0,90583.0,0.09278285]
[1764397973093,0.8663,90584.0,90583.0,0.09278285]
[1764397973982,0.4663,90584.0,90583.0,0.09278285]
[1764397979785,0.4663,90584.0,90583.0,0.01585285]
[1764397979990,0.06919,90575.0,90574.0,0.08204607]
[1764397980189,0.34919,90575.0,90574.0,0.08204607]
[1764397981187,0.09919,90575.0,90574.0,0.08204607]
[1764397981587,0.06919,90575.0,90574.0,0.09817886]
[1764397981792,0.31919,90575.0,90574.0,0.09817886]
[1764397982395,0.42999,90587.0,90586.0,0.07084]
[1764397982698,0.48999,90587.0,90586.0,0.07084]
[1764397982899,0.83999,90587.0,90586.0,0.07084]
[1764397983999,0.84099,90587.0,90586.0,0.07084]
[1764397984301,0.48019,90587.0,90586.0,0.07084]
[1764397984600,0.48219,90587.0,90586.0,0.07084]
[1764397988200,0.48219,90587.0,90574.0,0.08613846]
[1764397988201,0.09084,90575.0,90574.0,0.08613846]
[1764397989297,0.06919,90575.0,90574.0,0.08713846]
[1764397990495,0.09084,90575.0,90574.0,0.08713846]
[1764397992409,0.06919,90575.0,90574.0,0.08713846]
[1764397996206,0.42999,90581.0,90580.0,0.082]
[1764397998310,0.42999,90581.0,90580.0,0.0930398]
[1764397999408,0.06919,90581.0,90580.0,0.0930398]
[1764398006615,0.06919,90581.0,90580.0,0.1730398]
[1764398006818,0.42076,90590.0,90589.0,0.0692687]
[1764398007013,0.57076,90590.0,90589.0,0.0692687]
[1764398007309,0.54076,90590.0,90589.0,0.0692687]
[1764398007817,0.54176,90590.0,90589.0,0.0692687]
[1764398008316,0.54076,90590.0,90589.0,0.0692687]
[1764398008704,0.79076,90590.0,90589.0,0.0692687]
[1764398012015,0.07357,90580.0,90576.0,0.3608]
[1764398012217,0.07357,90580.0,90540.0,0.00999999]
[1764398012218,0.0110416,90565.0,90550.0,0.55793184]
[1764398012514,0.0110416,90565.0,90544.0,0.01844]
[1764398012515,0.0110426,90558.0,90546.0,0.13901119]
[1764398012715,0.0110441,90546.0,90536.0,0.01844]
[1764398012920,0.84689584,90546.0,90528.0,0.07667]
[1764398013120,0.09794074,90538.0,90531.0,0.05823]
[1764398013418,0.84080126,90538.0,90531.0,0.05823]
[1764398013714,0.84080126,90538.0,90528.0,0.00016567]
[1764398013903,0.0110459,90530.0,90528.0,0.00016567]
[1764398014109,0.7910459,90530.0,90528.0,0.00516567]
[1764398014505,0.7910459,90530.0,90528.0,0.00016567]
[1764398015214,0.7210459,90530.0,90529.0,0.05823]
[1764398015423,0.71,90530.0,90529.0,0.05823]
[1764398016319,0.37,90530.0,90529.0,0.05823]
[1764398016510,0.44,90530.0,90529.0,0.05823]
[1764398016815,0.37,90530.0,90529.0,0.05823]
[1764398018219,0.44814097,90542.0,90541.0,0.05823]
[1764398018419,0.51814097,90542.0,90541.0,0.05823]
[1764398018812,0.3608,90542.0,90541.0,0.05823]
[1764398019517,0.3628,90542.0,90541.0,0.05823]
[1764398019912,0.3608,90542.0,90541.0,0.05823]
[1764398020114,0.3618,90542.0,90541.0,0.05823]
[1764398020514,0.00016567,90546.0,90545.0,0.07667]
[1764398023022,0.00116567,90546.0,90545.0,0.07667]
[1764398026122,0.0110447,90541.0,90538.0,0.07667]
[1764398026322,0.3608,90541.0,90540.0,0.05823]
[1764398026629,0.00116567,90546.0,90545.0,0.07667]
[1764398027124,0.00016567,90546.0,90545.0,0.07667]
[1764398033820,0.00116567,90546.0,90545.0,0.07667]
[1764398035027,0.00016567,90546.0,90545.0,0.07667]
[1764398036134,0.00016567,90546.0,90539.0,0.05823]
[1764398036135,0.45016567,90546.0,90539.0,0.05823]
[1764398036327,0.04126,90540.0,90539.0,0.05823]
[1764398039330,0.02063,90540.0,90539.0,0.05823]
[1764398039723,0.02263,90540.0,90539.0,0.05823]
[1764398040121,0.04326,90540.0,90539.0,0.05823]
[1764398041734,0.3608,90541.0,90540.0,0.06797]
[1764398042030,0.40206,90541.0,90540.0,0.03717]
[1764398042329,0.38143,90541.0,90540.0,0.06797]
[1764398042517,0.40206,90541.0,90540.0,0.06797]
[1764398042816,0.40306,90541.0,90540.0,0.06797]
[1764398044338,0.4351586,90541.0,90540.0,0.06797]
[1764398044630,0.04126,90539.0,90538.0,0.01844]
[1764398044820,0.04126,90539.0,90538.0,0.08641]
[1764398045220,0.07336967,90539.0,90538.0,0.08641]
[1764398046334,0.03311903,90539.0,90538.0,0.08641]
[1764398046535,0.001,90539.0,90538.0,0.08641]
[1764398047232,0.03311908,90539.0,90538.0,0.08641]
[1764398048635,0.03211908,90539.0,90538.0,0.08641]
[1764398048934,0.3608,90541.0,90540.0,0.06797]
[1764398049135,0.39292834,90541.0,90540.0,0.06797]
[1764398049334,0.41355834,90541.0,90540.0,0.06797]
[1764398049932,0.43418834,90541.0,90540.0,0.06797]
[1764398050338,0.43518834,90541.0,90540.0,0.06797]
[1764398058441,0.43418834,90541.0,90540.0,0.06797]
[1764398059043,0.43518834,90541.0,90540.0,0.06797]
[1764398059443,0.43418834,90541.0,90540.0,0.06797]
[1764398059743,0.43518834,90541.0,90540.0,0.06797]
[1764398060344,0.40306,90541.0,90540.0,0.06797]
[1764398060542,0.43519315,90541.0,90540.0,0.06797]
[1764398061048,0.43519315,90541.0,90534.0,0.01844]
[1764398061049,0.0110479,90514.0,90513.0,0.13909923]
[1764398061240,0.4,90514.0,90503.0,0.02039]
[1764398061437,0.4,90514.0,90502.0,0.01359734]
[1764398061645,0.4,90514.0,90508.0,0.05955871]
[1764398061850,0.4,90514.0,90507.0,0.05955871]
[1764398061851,0.0110483,90511.0,90507.0,0.05955871]
[1764398062041,0.0110483,90511.0,90461.0,0.0110543]
[1764398062042,0.4010483,90511.0,90503.0,0.05955871]
[1764398062245,0.4010483,90511.0,90480.0,0.13909923]
[1764398062246,0.0110507,90491.0,90490.0,0.01362634]
[1764398062546,0.0110507,90491.0,90480.0,0.13909923]
[1764398062547,0.7618507,90491.0,90481.0,0.05955871]
[1764398062946,0.7618507,90491.0,90489.0,0.02039]
[1764398063147,0.7618507,90491.0,90481.0,0.05955871]
[1764398063347,0.7618507,90491.0,90488.0,0.05682]
[1764398063751,0.7618507,90491.0,90488.0,0.02039]
[1764398064450,0.7618507,90491.0,90490.0,0.07312]
[1764398064644,0.3718507,90491.0,90490.0,0.07312]
[1764398064851,0.5018507,90491.0,90490.0,0.07312]
[1764398065050,0.3608,90491.0,90490.0,0.07312]
[1764398065750,0.00016576,90499.0,90498.0,0.07312]
[1764398066049,0.28016576,90499.0,90498.0,0.07312]
[1764398066251,0.00016576,90499.0,90498.0,0.07312]
[1764398066950,0.00016576,90499.0,90485.0,9.462e-05]
[1764398067139,0.0110519,90481.0,90474.0,2e-08]
[1764398067339,0.011056,90447.0,90446.0,0.00027641]
[1764398068257,0.37194529,90447.0,90446.0,0.00027641]
[1764398068754,0.37194529,90447.0,90446.0,0.00527641]
[1764398068946,0.37194529,90447.0,90446.0,0.04162641]
[1764398069144,0.37194529,90447.0,90446.0,0.07765641]
[1764398069650,0.36088929,90447.0,90446.0,0.07765641]
[1764398071352,0.00016576,90456.0,90455.0,0.07238]
[1764398071753,0.02504105,90456.0,90455.0,0.03635]
[1764398072250,0.02504105,90456.0,90450.0,0.02129]
[1764398072251,0.0110551,90455.0,90450.0,0.05764]
[1764398072446,0.0110551,90455.0,90450.0,0.02129]
[1764398072855,0.0110554,90452.0,90450.0,0.02129]
[1764398073157,0.02487529,90453.0,90452.0,0.07238]
[1764398073857,0.03593059,90453.0,90452.0,0.03635]
[1764398074054,0.03593059,90453.0,90450.0,0.02129]
[1764398074459,0.03593059,90453.0,90450.0,0.05764]
[1764398074649,0.03593059,90453.0,90450.0,0.09667]
[1764398074850,0.02487529,90452.0,90450.0,0.09667]
[1764398075758,0.02487529,90452.0,90451.0,0.07238]
[1764398077552,0.02487529,90452.0,90451.0,0.07538]
[1764398078562,0.02487529,90452.0,90424.0,0.3608]
[1764398078855,0.02487529,90452.0,90410.0,0.0785659]
[1764398078856,0.0110598,90417.0,90414.0,0.02129]
[1764398079055,0.01106,90415.0,90414.0,0.02129]
[1764398079249,0.01106,90415.0,90414.0,0.09367]
[1764398079453,0.01106,90415.0,90414.0,0.05764]
[1764398079752,0.31106,90415.0,90414.0,0.02129]
[1764398079952,0.03593529,90415.0,90414.0,0.02129]
[1764398080153,0.03593529,90415.0,90414.0,0.05764]
[1764398080361,0.02487529,90415.0,90414.0,0.09367]
[1764398080748,0.02487529,90415.0,90414.0,0.09467]
[1764398081257,0.02587529,90415.0,90414.0,0.10167]
[1764398083857,0.00016586,90424.0,90423.0,0.07238]
[1764398085063,0.00016586,90424.0,90423.0,0.07638]
[1764398085655,0.3608,90435.0,90434.0,0.07238]
[1764398086371,0.91588,90435.0,90399.0,0.3608]
[1764398086552,0.0110618,90400.0,90380.0,0.02129]
[1764398086751,0.3010618,90400.0,90380.0,0.02129]
[1764398086956,0.3010618,90400.0,90388.0,0.00016586]
[1764398087362,0.0110631,90389.0,90388.0,0.00016586]
[1764398087557,0.3910631,90389.0,90388.0,0.00016586]
[1764398087762,1.1126631,90389.0,90388.0,0.00016586]
[1764398088463,1.1126631,90389.0,90350.0,0.02129]
[1764398088464,0.0110637,90385.0,90351.0,0.0139574]
[1764398088658,0.3608,90367.0,90366.0,0.07265665]
[1764398088860,0.3608,90370.0,90366.0,0.07265665]
[1764398089064,0.3608,90370.0,90369.0,0.07238]
[1764398089767,0.00016597,90379.0,90378.0,0.07238]
[1764398090865,0.00216597,90379.0,90378.0,0.08338]
[1764398091264,0.3608,90389.0,90388.0,0.07238]
[1764398092560,0.3608,90389.0,90388.0,0.07438]
[1764398093657,0.3618,90389.0,90388.0,0.07938]
[1764398094369,0.001,90389.0,90388.0,0.07938]
[1764398094671,0.08436441,90401.0,90400.0,0.07238]
[1764398094862,0.3608,90419.0,90400.0,0.07238]
[1764398095061,0.3608,90419.0,90410.0,0.07238]
[1764398095062,0.09017452,90411.0,90410.0,0.07238]
[1764398095768,0.3608,90419.0,90418.0,0.07238]
[1764398096068,0.3608,90419.0,90408.0,0.02129]
[1764398096265,0.06995,90409.0,90408.0,0.1294]
[1764398096570,0.3608,90419.0,90408.0,0.1294]
[1764398096571,0.43075,90419.0,90418.0,0.06938]
[1764398096774,0.46826,90419.0,90418.0,0.06938]
[1764398096966,0.46826,90419.0,90418.0,0.10811]
[1764398097372,0.00016597,90420.0,90419.0,0.10811]
[1764398097962,0.3608,90440.0,90439.0,0.06938]
[1764398097963,0.43075,90440.0,90439.0,0.06938]
[1764398098162,0.43075,90440.0,90439.0,0.10811]
[1764398098357,0.3608,90440.0,90439.0,0.10811]
[1764398099365,0.00016586,90449.0,90448.0,0.10811]
[1764398099668,0.00016586,90449.0,90448.0,0.46891]
[1764398099870,0.00016586,90449.0,90448.0,0.10811]
[1764398100071,0.00016586,90449.0,90448.0,0.46891]
[1764398100969,0.00816586,90449.0,90448.0,0.47091]
[1764398101475,0.00916586,90449.0,90448.0,0.47091]
[1764398102273,0.00816586,90449.0,90448.0,0.47091]
[1764398102477,0.00916586,90449.0,90448.0,0.47091]
[1764398103074,0.00716586,90449.0,90448.0,0.46991]
[1764398103666,0.00016586,90449.0,90448.0,0.46891]
[1764398103871,0.3608,90463.0,90462.0,0.10811]
[1764398104069,0.3608,90463.0,90462.0,0.1191642]
[1764398105778,0.3698,90463.0,90462.0,0.1201642]
[1764398107474,0.009,90463.0,90462.0,0.1201642]
[1764398107681,0.00016586,90472.0,90471.0,0.10811]
[1764398107872,0.07011586,90472.0,90471.0,0.10811]
[1764398108270,0.00016586,90472.0,90471.0,0.10811]
[1764398108774,0.01216586,90472.0,90471.0,0.11011]
[1764398109778,0.00116586,90472.0,90471.0,0.10811]
[1764398109979,0.01216586,90472.0,90471.0,0.11011]
[1764398110778,0.14541586,90472.0,90471.0,0.002]
[1764398113185,0.92621586,90472.0,90471.0,0.002]
[1764398113379,0.50621586,90472.0,90471.0,0.002]
[1764398113570,0.68621586,90472.0,90471.0,0.002]
[1764398113776,0.68621586,90472.0,90471.0,0.00183397]
[1764398114279,0.50621586,90472.0,90471.0,0.00183397]
[1764398114476,0.59621586,90472.0,90471.0,0.00183397]
[1764398116179,0.94621586,90472.0,90471.0,0.00183397]
[1764398116984,0.64621586,90472.0,90471.0,0.00183397]
[1764398117385,0.89621586,90472.0,90471.0,0.00183397]